Cogmind - Beta 17 @@@ ROGUE MODE // 2026.07.05 @ 16:16:50 Player: 3.14 Result: Destroyed by S-10 Pest with Light Assault Rifle Performance ------------- Evolutions (0) 0 Regions Visited (2) 400 Robots Destroyed (28) 140 Value Destroyed (744) 744 Prototype IDs (2) 40 Alien Tech Used (0) 0 Bonus (0) 0 TOTAL SCORE: 1324 Bonus ------- None Cogmind --------- Core Integrity 0/250 Matter 258/300 Energy 154/200 System Corruption 0% Temperature Cool (0) Movement Treading (240) Ox1 Location -10/Subcaves Parts ------- > --- POWER (1) -------- Subdweller Power Source > --- PROPULSION (2) --- Light Treads Light Treads > --- UTILITY (2) ------ High-capacity Storage Unit Seismic Detector > --- WEAPON (2) ------- Subdweller Beam Cannon Assault Rifle > --- INVENTORY (20) --- Light Treads Light Treads Subdweller Monowheel Subdweller Monowheel Disposable Heat Sink Subdweller Optics Seismic Detector Medium Armor Plating Medium Armor Plating Subdweller Laser Subdweller Laser Light Assault Rifle Light Assault Rifle Shotgun Shotgun Peak State ------------ > --- POWER ------------ Light Ion Engine > --- PROPULSION ------- Light Treads Light Treads > --- UTILITY ---------- High-capacity Storage Unit Medium Armor Plating > --- WEAPON ----------- Subdweller Beam Cannon Shotgun > --- INVENTORY -------- Subdweller Power Source Light Treads Light Treads Light Treads Subdweller Monowheel Subdweller Monowheel Disposable Heat Sink Subdweller Optics Seismic Detector Seismic Detector Medium Armor Plating Medium Armor Plating Medium Armor Plating Subdweller Laser Assault Rifle Light Assault Rifle Light Assault Rifle Shotgun Shotgun [Rating: 13] Favorites ----------- Power Light Ion Engine Engine Light Ion Engine Propulsion Light Treads Treads Light Treads Utility High-capacity Storage Unit Device Seismic Detector Storage High-capacity Storage Unit Processor Targeting Computer Protection Medium Armor Plating Weapon Shotgun Energy Cannon Subdweller Beam Cannon Ballistic Gun Shotgun Build | -11 -10 -10 ------- Run | Yrd Mat Sub Slots Evolved . | . . . Power . | . . . Propulsion . | . . . Utility . | . . . Weapon . | . . . Parts Attached 29 | 6 11 12 Power 4 | 1 1 2 Engine 4 | 1 1 2 Core . | . . . Reactor . | . . . Propulsion 6 | 2 2 2 Treads 6 | 2 2 2 Leg . | . . . Wheel . | . . . Hover . | . . . Flight . | . . . Utility 11 | 1 5 5 Device 3 | . 2 1 Storage 4 | 1 2 1 Processor 1 | . 1 . Hackware . | . . . Protection 3 | . . 3 Artifact . | . . . Weapon 8 | 2 3 3 Energy Gun . | . . . Energy Cannon 1 | . . 1 Ballistic Gun 7 | 2 3 2 Ballistic Cannon . | . . . Launcher . | . . . Special Weapon . | . . . Impact Weapon . | . . . Slashing Weapon . | . . . Piercing Weapon . | . . . Special Melee Weapon . | . . . Unidentified Prototypes . | . . . Parts Lost 6 | . 1 5 Power 2 | . . 2 Propulsion 2 | . 1 1 Utility 1 | . . 1 Weapon 1 | . . 1 Highest Loss Streak 4 | . 1 4 To Critical Strikes . | . . . Average Backups 11 | 1 8 15 Power . | . 1 . Propulsion 4 | 1 4 4 Utility 2 | . . 5 Weapon 3 | . 2 5 Tool/Special . | . . . Unused Backups 16 | . 4 12 Power . | . . . Propulsion 6 | . 2 4 Utility 4 | . . 4 Weapon 6 | . 2 4 Tool/Special . | . . . Average Slot Usage (%) 98 | . 97 99 Engine 13 | . 14 13 Treads 27 | . 27 27 Device 6 | . 8 3 Storage 14 | . 14 14 Processor 1 | . 3 . Protection 5 | . . 10 Energy Cannon 4 | . . 9 Ballistic Gun 23 | . 28 18 Peak Build Rating 13 | 6 11 13 Average Rating 9 | 5 8 11 On Entrance 5 | . 6 11 Avg Prop Armor Cover (%) . | . . . Naked Turns . | . . . Heaviest Build 63 | 10 32 63 Greatest Support 40 | 40 40 40 Greatest Overweight (x) 1 | . . 1 Average Overweight (x) . | . . . Largest Inventory Capacity 20 | 8 15 20 Average Capacity 14 | 7 9 19 Most Carried 20 | 4 15 20 Average Carried 11 | 2 8 15 Final Capacity 20 | 8 15 20 Final Carried 15 | 4 15 15 Class Distribution -------------------- 100% | Mutant Dominant Class ---------------- Mutant | -10/Materials Mutant | -10/Subcaves Resources | -11 -10 -10 ----------- Run | Yrd Mat Sub Matter Collected 782 | 255 239 288 Remotely . | . . . Salvage Created 964 | 56 523 385 Parts 55 | . 30 25 Haulers Intercepted . | . . . Recyclers Shooed 3 | . 3 . Parts Field Recycled . | . . . Retrieved Matter . | . . . Parts Self-Destructed 7 | . . 7 Prevented . | . . . Parts Restored . | . . . Kills | -11 -10 -10 ------- Run | Yrd Mat Sub Combat Hostiles Destroyed 25 | . 14 11 Guns 23 | . 14 9 Cannons 2 | . . 2 Classes Destroyed 4 | 1 2 1 Recycler 3 | 1 2 . Swarmer 8 | . 6 2 Grunt 10 | . 8 2 Subdweller 7 | . . 7 Best Kill Streak 5 | 1 5 2 Combat Bots Only 4 | . 4 2 Max Kills in Single Turn 1 | 1 1 1 Gunslinging . | . . . Exploded . | . . . Melee . | . . . Uniques/NPCs Destroyed . | . . . Combat | -11 -10 -10 -------- Run | Yrd Mat Sub Hostile Shots Fired 127 | . 58 69 Missed 28 | . 15 13 Hits 99 | . 43 56 Projectile 99 | . 43 56 AOE 1 | . 1 . Critical Strikes 3 | . . 3 Damage Taken 1615 | . 510 1105 Core 252 | . 99 153 Absorbed by Shields . | . . . Core Remaining (%) 100 | 100 . . Volleys Fired 70 | . 35 35 Largest 2 | . 2 2 Hottest 103 | . 46 103 Shots Fired 137 | . 70 67 Gun 121 | . 70 51 Cannon 16 | . . 16 Launcher . | . . . Special . | . . . Kinetic 121 | . 70 51 Thermal 16 | . . 16 Explosive . | . . . Electromagnetic . | . . . Robot Hit Streak 11 | . 11 10 Robot Miss Streak 3 | . 3 3 Penetration Max . | . . . Secondary Targets 3 | . 2 1 Max Gunslinging Chain 1 | . 1 1 Shots Hit Robots 102 | . 47 55 Core Hits 54 | . 29 25 Critical Kills . | . . . Critical Parts Destroyed . | . . . Critical Strikes . | . . . Melee Attacks . | . . . Impact . | . . . Slashing . | . . . Piercing . | . . . Sneak Attacks . | . . . Combat Hostiles . | . . . Follow-up Attacks . | . . . Damage Inflicted 1640 | 4 621 1015 Guns 1331 | . 618 713 Cannons 302 | . . 302 Explosions . | . . . Melee . | . . . Ramming 7 | 4 3 . Kinetic 1331 | . 618 713 Thermal 302 | . . 302 Explosive . | . . . Electromagnetic . | . . . Impact . | . . . Slashing . | . . . Piercing . | . . . Highest Corruption . | . . . Average Corruption . | . . . Corruption Purged . | . . . Corruption Blocked . | . . . Overload Shots . | . . . Overflow Damage . | . . . Projectiles . | . . . Explosions . | . . . Melee . | . . . Knockbacks . | . . . Impact . | . . . Kinetic . | . . . Secondary . | . . . Self-Inflicted Damage . | . . . Shots . | . . . Rammed 4 | 2 2 . Targets Rammed 5 | 3 2 . Kicked . | . . . Crushed 1 | 1 . . Highest Temperature 21 | . 12 21 Average Temperature 5 | . 3 7 Received Heat Transfer 270 | . 93 177 Siege Activations . | . . . Martial Activations . | . . . Shielding Activations . | . . . Robots Disrupted . | . . . Combat Hostiles . | . . . Robots Corrupted . | . . . Combat Hostiles . | . . . Parts Fried . | . . . Impact Corruptions . | . . . Robots Melted . | . . . Combat Hostiles . | . . . Parts Melted . | . . . Heat Transferred 407 | . . 407 Parts Sabotaged . | . . . Parts Stolen . | . . . Parts Stripped . | . . . Power Chain Reactions . | . . . Alert | -11 -10 -10 ------- Run | Yrd Mat Sub Maximum Alert Level . | . . . Low Security (%) 100 | 100 100 . Level 1 . | . . . Level 2 . | . . . Level 3 . | . . . Level 4 . | . . . Level 5 . | . . . High Security . | . . . Max Security . | . . . Peak Influence 134 | 5 134 . Initial . | . . . Average 45 | . 49 . Influence Increases 475 | 5 370 100 Destroy 0b10 Robot/C 360 | . 280 80 Destroy 0b10 Robot/NC 15 | 5 10 . Destroy Leader 80 | . 60 20 Successful Hack 5 | . 5 . Lose Combat Pursuer 15 | . 15 . Influence Decreases 431 | 5 290 136 Entered New Map 39 | . . 39 Time Decay 372 | 5 280 87 Lost Part 20 | . 10 10 Squads Dispatched 3 | . 3 . Investigation 2 | . 2 . Extermination . | . . . Reinforcement 1 | . 1 . Assault . | . . . Garrison . | . . . Intercept . | . . . Searches Triggered . | . . . Construction Impeded . | . . . Haulers Reinforced . | . . . Active Scanning Responses . | . . . Cargo Convoy Interrupts . | . . . Stealth | -11 -10 -10 --------- Run | Yrd Mat Sub Distress Signals . | . . . Communications Jammed . | . . . Distress Signals . | . . . Times Spotted 32 | . 20 12 Peak Tracking Total 6 | . 6 3 Tactical Retreats 1 | . 1 . Traps | -11 -10 -10 ------- Run | Yrd Mat Sub Traps Triggered 4 | . 2 2 Indirectly . | . . . Trap Hack Attempts . | . . . Triggered . | . . . Disarmed . | . . . Reprogrammed . | . . . Reused . | . . . Traps Extracted . | . . . Installed . | . . . Triggered . | . . . Machines | -11 -10 -10 ---------- Run | Yrd Mat Sub Machines Disabled . | . . . Max in Single Turn . | . . . Machines Repaired . | . . . Machines Dismantled . | . . . Machines Sabotaged . | . . . Overloaded Fab Kills . | . . . Hacking | -11 -10 -10 --------- Run | Yrd Mat Sub Machines Accessed 3 | . 3 . Terminals 3 | . 3 . Fabricators . | . . . Repair Stations . | . . . Recycling Units . | . . . Scanalyzers . | . . . Garrison Access . | . . . Total Hacks 5 | . 5 . Successful 2 | . 2 . Failed 3 | . 3 . Catastrophic 2 | . 2 . Database Lockouts . | . . . Manual 4 | . 4 . Terminals 5 | . 5 . Fabricators . | . . . Repair Stations . | . . . Recycling Units . | . . . Scanalyzers . | . . . Garrison Access . | . . . Terminal Hacks 2 | . 2 . Prototype ID Bank 1 | . 1 . Transport Status 1 | . 1 . Fabricator Hacks . | . . . Repair Station Hacks . | . . . Recycling Unit Hacks . | . . . Scanalyzer . | . . . Garrison Access Hacks . | . . . Unauthorized Hacks . | . . . Terminals . | . . . Fabricators . | . . . Repair Stations . | . . . Recycling Units . | . . . Scanalyzers . | . . . Garrison Access . | . . . Data Cores Recovered . | . . . Used . | . . . Hacking Detections 3 | . 3 . Full Trace Events . | . . . Feedback Events . | . . . Feedback Blocked . | . . . Robot Schematics Acquired . | . . . Robots Built . | . . . Authchips . | . . . Time . | . . . Total Robot Build Rating . | . . . Part Schematics Acquired . | . . . Parts Built . | . . . Authchips . | . . . Time . | . . . Total Part Build Rating . | . . . Part Studies Acquired . | . . . Parts Repaired . | . . . Time . | . . . Parts Recycled . | . . . Recycled Matter . | . . . Retrieved Matter . | . . . Retrieved Components . | . . . Parts Scanalyzed . | . . . Part Schematics Acquired . | . . . Parts Damaged . | . . . Bothacking | -11 -10 -10 ------------ Run | Yrd Mat Sub Used RIF Installer . | . . . Robots Hacked . | . . . Non-combat . | . . . Combat . | . . . Robot Hacks Applied . | . . . Relay Couplers Released . | . . . Fabnet Peak Effective % . | . . . Robots Rewired . | . . . Allies Hacked . | . . . Hacks Repelled . | . . . Allies | -11 -10 -10 -------- Run | Yrd Mat Sub Total Allies . | . . . Largest Group . | . . . Highest-Rated Group . | . . . Highest-Rated Ally . | . . . Total Orders . | . . . Ally Attacks . | . . . Total Damage . | . . . Kills . | . . . Allies Corrupted . | . . . Allies Melted . | . . . Intel | -11 -10 -10 ------- Run | Yrd Mat Sub Active Infowar (turns) 828 | . 635 193 Seismic 828 | . 635 193 Robot Analysis Total . | . . . Derelict Logs Recovered . | . . . Drone Launches . | . . . Drone Recoveries . | . . . Exploration | -11 -10 -10 ------------- Run | Yrd Mat Sub Turns Passed 2025 | 94 1003 928 Spaces Moved 704 | 50 422 232 Core 2 | 2 . . Treads 702 | 48 422 232 Legs . | . . . Wheels . | . . . Hover . | . . . Flight . | . . . Fastest Speed 50 | 50 160 160 Average Speed 184 | 155 160 234 Slowest Speed 240 | 160 160 240 Overloaded Moves . | . . . Propulsion Burnouts . | . . . Robots Hopped . | . . . Potential Cave-ins . | . . . Cave-ins Triggered . | . . . Exploration Rate (%) 30 | 3 66 22 Regions Visited 2 Branch Regions 1 Pre-discovered Areas . | . . . Known Exits Taken . | . . . Unknown Exits Taken 2 | 1 1 . Scrap Searched . | . . . Spaces Dug . | . . . Terrain Destroyed 4 | . . 4 Melee . | . . . Projectile 4 | . . 4 AOE . | . . . Terrain Rammed . | . . . Walls Destroyed . | . . . Machines Disabled . | . . . Actions | -11 -10 -10 --------- Run | Yrd Mat Sub Total 1306 | 62 698 546 Wait 444 | . 192 252 Move 702 | 49 421 232 Hop . | . . . Pick Up 33 | 4 21 8 Fast Attach 9 | 6 2 1 Attach 9 | . 3 6 Detach . | . . . Swap 13 | . 6 7 Drop 21 | . 16 5 Fire 70 | . 35 35 Melee . | . . . Ram . | . . . Kick . | . . . Crush 5 | 3 2 . Escape Stasis . | . . . Rewire . | . . . Trap . | . . . Miscellaneous . | . . . Route ------- -11/Scrapyard -10/Materials (discovered 4 exits: [*Mat x2] / [*Min] / [*Sub]) -10/Subcaves History --------- Turn | Location | Event 41 | -11/Scrapyard | Discovered new exit (range 15) 95 | -11/Scrapyard | Entered Materials 316 | -10/Materials | Build established: Mutant 435 | -10/Materials | Discovered new exit (range 9) 498 | -10/Materials | Discovered new exit (range 11) 575 | -10/Materials | Discovered new exit (range 16) 871 | -10/Materials | Discovered new exit (range 15) 1098 | -10/Materials | Entered Subcaves 1127 | -10/Subcaves | Core integrity fell below 50% 1183 | -10/Subcaves | Core integrity fell below 20% 1410 | -10/Subcaves | A swath of the cavern ceiling suddenly collapsed 1839 | -10/Subcaves | Lost 4 parts (1p1n1u1w) 1841 | -10/Subcaves | Shifting Twisted Machinery released Sub. Laser 1850 | -10/Subcaves | Shifting Twisted Machinery released Flamer 2026 | -10/Subcaves | Destroyed by S-10 Pest with Light Assault Rifle Last Messages --------------- 01794_ Lgt. Treads destroyed. 01796_ I3-6EH(R) destroyed. 01800_ Lgt. Ion Engine destroyed. 01807_ Subatomizers dissect the Disposable Heat Sink. 01808_ Shotgun destroyed. 01815_ NB-MLP(R) destroyed. 01819_ Acquired 65 matter. 01820_ Subatomizers dissect the Disposable Heat Sink. Sub. Laser falls loose from the Twisted Machinery. 01848_ Subatomizers dissect the Disposable Heat Sink. Flamer falls loose from the Twisted Machinery. 01862_ Acquired Sub. Laser. 01882_ Subatomizers dissect the Disposable Heat Sink. 01917_ Dropped Med. Armor Plating. 01929_ Subatomizers dissect the Disposable Heat Sink. 01973_ Triggered Piercing Trap. 01973_ Spikes shoot up from the floor. 01973_ Critical hit (Impale). 02017_ S-10 Pest destroyed. 02025_ Flight Unit fries itself beyond repair. Map ----- +----------------------------------------------------+ | ?# ??## #?# &### ##?????????????? | | ?#####???# ### %&&& #??????????????? | | ?????????# ## ##% #??????????????? | | ?????????# ### & #??????????????? | | ????????## ##?#" #?????????????? | | ???????## ######??#" ## #?????????????? | | ???????# ##???????#" #??## #?????????????? | | ???????# ##????????# "" #??????????????????? | | ???????## ##?????????##"""" #?????????????????? | | ????????## #???????????# "##"#?????????????????? | | ????????## ##???????????####?##?????????????????? | | ???????## #####????????????????#???????????????? | | ???????# ## ##???????###?# ? ????????????????? | | ???????### ##????##""## ?????????????????? | | ???????### #####" """" ??????????????????? | | ???????# ### ## ????????????????????? | | ###????# ### ## ??? ?????????????????? | | # ###### ## ## #??? #????????????????? | | ## ## # ##?" ##????????????????? | | ^ "##"""#????????????????? | | %% """"#?????????????????? | | ## # " "#?????????????????? | | %# ### ## ?????????????????? | | #?#### ## ###???????????????????? | | # ## #????# ###### ##???????????????????? | | ######????# ##??# @ #???????????????????? | | ??????????# ##??# #??????????????????? | | ??????????# #???# #?????????????????? | | ??????????# ???# #????????????????? | | ?????????# ??# #????????????????? | | ?????????# ? ##????????????????? | | ?????????## ###?????????????????? | | ??????????## #???????????????????? | | ???????????## ##; ???????????????????? | | ????????????? ?## ## ???????????????????? | | ????????????? ???# ##? ##??????????????????? | | ?????????????? ???; ???##???????????????????? | | ?????????????????????#% ????????????????????????? | | ?????????????????????=% ????????????????????????? | | ????????????????????? s ????????????????????????? | | ????????????????????????????????????????????????? | | ????????????????????????????????????????????????? | | ????????????????????????????????????????????????? | | ????????????????????????????????????????????????? | | ????????????????????????????????????????????????? | | ????????????????????????????????????????????????? | | ????????????????????????????????????????????????? | | ????????????????????????????????????????????????? | | ????????????????????????????????????????????????? | | ????????????????????????????????????????????????? | +----------------------------------------------------+ Best States ------------- Heat Dissipation 25 Energy Generation 10 Energy Capacity 250 Matter Stores 300 Matter Capacity 300 Sight Range 16 Terrain Scan Density 10 Armor Coverage 225 Evasion (%) 40 Targeting Accuracy 5 Recoil Reduction 2 Item Schematics ----------------- None Robot Schematics ------------------ None Fabricated ------------ Nothing Repaired ---------- Nothing Studied --------- None Alien Tech Used ----------------- None Achievements -------------- None Challenges ------------ None Game ------ Seed JammingUltimateShockpuncher Manual? 0 Play Time 00:09:56 Cumulative 968.8 hours Start 2026.07.05 @ 16:05:09 End 2026.07.05 @ 16:16:50 Sessions 1 Manual Loads 0 Difficulty Rogue Special Mode None Game No. 1653 Rogue 1653 Adventurer 0 Explorer 0 Win Type - Total 95 Types 56/1/16/16/4/0/0/1/0/1 Lore% 93 Gallery% 80 Achievement% 67 Wizard Run 0 Options --------- Layout 0 ASCII 1 Keyboard 0 Movement Numpad Keybinds 1 Fullscreen 2 Font 18/SmallcapsGlow Map View 76x50 Zoom Use 0% Tactical HUD 1 Map Filters NONE Filters NONE Steam 1 RUN: 59559181-f0b0-4870-b282-759e3315446c